[Event "MČR v bleskovém šachu družstev 2019"]
[Site "Teplice, Czech Republic"]
[Date "2019.09.14"]
[Round "15.17"]
[White "Brejnik, Gustav"]
[Black "Rubes, Jan"]
[Result "1-0"]
[TimeControl "3 mim. + 2 s"]
[BlackTitle "FM"]
[WhiteFideId "362662"]
[BlackFideId "338176"]
[WhiteElo "2137"]
[BlackElo "2316"]

1. d4 {[%clk 00:03:03]} Nf6 {[%clk 00:03:01]} {[%emt 00:00:03]} 2. c4 {[%clk
00:03:04]} e6 {[%clk 00:03:02]} {[%emt 00:00:01]} 3. Nc3 {[%clk 00:03:01]}
{[%emt 00:00:05]} Bb4 {[%clk 00:03:03]} {[%emt 00:00:01]} 4. Qc2 {[%clk
00:03:01]} {[%emt 00:00:02]} d5 {[%clk 00:03:02]} {[%emt 00:00:03]} 5. cxd5
{[%clk 00:03:00]} {[%emt 00:00:03]} exd5 {[%clk 00:03:03]} {[%emt 00:00:02]} 6.
Bg5 {[%clk 00:02:56]} {[%emt 00:00:06]} c6 {[%clk 00:02:57]} {[%emt 00:00:08]}
7. e3 {[%clk 00:02:55]} {[%emt 00:00:02]} Nbd7 {[%clk 00:02:28]} {[%emt
00:00:31]} 8. Bd3 {[%clk 00:02:55]} {[%emt 00:00:02]} h6 {[%clk 00:02:28]}
{[%emt 00:00:02]} 9. Bh4 {[%clk 00:02:55]} {[%emt 00:00:02]} Be7 {[%clk
00:02:17]} {[%emt 00:00:13]} 10. Nge2 {[%clk 00:02:48]} {[%emt 00:00:09]} Nf8
{[%clk 00:02:08]} {[%emt 00:00:11]} 11. f3 {[%clk 00:02:29]} {[%emt 00:00:21]}
Ne6 {[%clk 00:02:07]} {[%emt 00:00:04]} 12. Rd1 {[%clk 00:02:22]} {[%emt
00:00:08]} O-O {[%clk 00:02:02]} {[%emt 00:00:08]} 13. O-O {[%clk 00:02:22]}
{[%emt 00:00:02]} b6 {[%clk 00:01:53]} {[%emt 00:00:10]} 14. Bf2 {[%clk
00:02:19]} {[%emt 00:00:05]} c5 {[%clk 00:01:50]} {[%emt 00:00:06]} 15. Ng3
{[%clk 00:02:08]} {[%emt 00:00:13]} Re8 {[%clk 00:01:46]} {[%emt 00:00:06]} 16.
Nf5 {[%clk 00:02:05]} {[%emt 00:00:05]} Bf8 {[%clk 00:01:46]} {[%emt 00:00:01]}
17. Bb5 {[%clk 00:01:47]} {[%emt 00:00:20]} Bd7 {[%clk 00:01:47]} {[%emt
00:00:02]} 18. Bxd7 {[%clk 00:01:32]} {[%emt 00:00:17]} Qxd7 {[%clk 00:01:48]}
{[%emt 00:00:02]} 19. dxc5 {[%clk 00:01:32]} {[%emt 00:00:01]} bxc5 {[%clk
00:01:46]} {[%emt 00:00:04]} 20. Bh4 {[%clk 00:01:15]} {[%emt 00:00:19]} g5
{[%clk 00:01:35]} {[%emt 00:00:13]} 21. Bg3 {[%clk 00:01:12]} {[%emt 00:00:05]}
d4 {[%clk 00:01:06]} {[%emt 00:00:31]} 22. Be5 {[%clk 00:01:04]} {[%emt
00:00:09]} Nd5 {[%clk 00:01:07]} {[%emt 00:00:02]} 23. exd4 {[%emt 00:00:13]}
Nb4 {[%clk 00:01:03]} {[%emt 00:00:04]} 24. Qf2 {[%clk 00:00:29]} {[%emt
00:00:27]} c4 {[%clk 00:00:51]} {[%emt 00:00:15]} 25. Kh1 {[%clk 00:00:15]}
{[%emt 00:00:15]} Nd3 {[%clk 00:00:52]} {[%emt 00:00:02]} 26. Rxd3 {[%clk
00:00:14]} {[%emt 00:00:03]} cxd3 {[%clk 00:00:53]} 27. Ne4 {[%clk 00:00:15]}
Be7 {[%clk 00:00:37]} {[%emt 00:00:19]} 28. Nxh6+ {[%clk 00:00:13]} {[%emt
00:00:04]} Kf8 {[%clk 00:00:38]} 29. Qd2 {[%clk 00:00:09]} {[%emt 00:00:06]}
Nxd4 {[%clk 00:00:21]} {[%emt 00:00:19]} 30. Qxd3 {[%clk 00:00:06]} {[%emt
00:00:05]} Qe6 {[%clk 00:00:13]} {[%emt 00:00:09]} 31. Qxd4 {[%clk 00:00:03]}
{[%emt 00:00:06]} Qxh6 {[%clk 00:00:14]} 32. Ng3 {[%clk 00:00:05]} Rad8 {[%clk
00:00:15]} {[%emt 00:00:02]} 33. Qc3 {[%clk 00:00:06]} Qg6 {[%clk 00:00:13]}
{[%emt 00:00:04]} 34. Re1 {[%clk 00:00:06]} {[%emt 00:00:01]} Bd6 {[%clk
00:00:08]} {[%emt 00:00:08]} 35. Bxd6+ {[%clk 00:00:06]} {[%emt 00:00:02]} Rxd6
{[%emt 00:00:07]} 36. Qh8+ {[%clk 00:00:08]} Qg8 {[%clk 00:00:05]} 37. Rxe8+
{[%clk 00:00:09]} {[%emt 00:00:01]} 1-0

[Event "MČR v bleskovém šachu družstev 2019"]
[Site "Teplice, Czech Republic"]
[Date "2019.09.14"]
[Round "15.19"]
[White "Hoke, Petr"]
[Black "Kral, David"]
[Result "0-1"]
[TimeControl "3 mim. + 2 s"]
[WhiteFideId "305006"]
[BlackFideId "326097"]
[WhiteElo "1946"]
[BlackElo "2028"]

1. e4 {[%emt 00:00:02]} c5 {[%emt 00:00:01]} 2. c3 {[%clk 00:03:03]} Nc6 {[%clk
00:03:05]} {[%emt 00:00:02]} 3. d3 {[%clk 00:03:04]} e5 {[%clk 00:03:06]}
{[%emt 00:00:01]} 4. Nd2 {[%clk 00:03:05]} {[%emt 00:00:01]} d6 {[%clk
00:03:07]} 5. g3 {[%clk 00:03:06]} f5 {[%clk 00:03:09]} 6. exf5 {[%clk
00:03:07]} {[%emt 00:00:01]} Bxf5 {[%clk 00:03:10]} {[%emt 00:00:01]} 7. Ngf3
{[%clk 00:02:56]} {[%emt 00:00:13]} Nf6 {[%clk 00:03:10]} {[%emt 00:00:02]} 8.
Nh4 {[%clk 00:02:57]} Be6 {[%clk 00:03:10]} {[%emt 00:00:02]} 9. Bg2 {[%clk
00:02:56]} {[%emt 00:00:02]} Be7 {[%clk 00:03:11]} {[%emt 00:00:02]} 10. O-O
{[%clk 00:02:48]} {[%emt 00:00:10]} O-O {[%emt 00:00:06]} 11. Nhf3 {[%clk
00:02:48]} h6 {[%clk 00:03:05]} {[%emt 00:00:06]} 12. Ne4 {[%clk 00:02:21]}
{[%emt 00:00:29]} d5 {[%clk 00:03:00]} {[%emt 00:00:07]} 13. Nxf6+ {[%clk
00:02:18]} {[%emt 00:00:05]} Bxf6 {[%clk 00:03:01]} 14. Qe2 {[%clk 00:02:09]}
{[%emt 00:00:10]} Qd6 {[%clk 00:02:59]} {[%emt 00:00:05]} 15. h3 {[%clk
00:01:58]} {[%emt 00:00:13]} Rae8 {[%clk 00:02:59]} {[%emt 00:00:01]} 16. c4
{[%clk 00:01:55]} {[%emt 00:00:05]} Nd4 {[%clk 00:02:43]} {[%emt 00:00:19]} 17.
Nxd4 {[%clk 00:01:55]} {[%emt 00:00:02]} exd4 {[%clk 00:02:44]} {[%emt
00:00:01]} 18. Bf4 {[%clk 00:01:25]} {[%emt 00:00:32]} Qd7 {[%clk 00:02:45]}
{[%emt 00:00:01]} 19. Qh5 {[%clk 00:01:17]} {[%emt 00:00:09]} dxc4 {[%clk
00:02:09]} {[%emt 00:00:39]} 20. Be4 {[%clk 00:01:16]} {[%emt 00:00:03]} Bf7
{[%clk 00:02:01]} {[%emt 00:00:09]} 21. Bg6 {[%clk 00:01:09]} {[%emt 00:00:09]}
cxd3 {[%clk 00:01:48]} {[%emt 00:00:15]} 22. Bxf7+ {[%clk 00:01:08]} {[%emt
00:00:03]} Qxf7 {[%clk 00:01:48]} {[%emt 00:00:02]} 23. Qxc5 {[%clk 00:01:08]}
{[%emt 00:00:02]} b6 {[%clk 00:01:35]} {[%emt 00:00:16]} 24. Qa3 {[%clk
00:01:03]} {[%emt 00:00:07]} Qh5 {[%clk 00:01:24]} {[%emt 00:00:12]} 25. Qxd3
{[%clk 00:00:55]} {[%emt 00:00:10]} Qxh3 {[%clk 00:01:24]} {[%emt 00:00:02]} 26.
Rad1 {[%clk 00:00:46]} {[%emt 00:00:12]} h5 {[%clk 00:01:14]} {[%emt 00:00:11]}
27. Qg6 {[%clk 00:00:34]} {[%emt 00:00:15]} Qg4 {[%clk 00:01:04]} {[%emt
00:00:12]} 28. Qxg4 {[%clk 00:00:33]} {[%emt 00:00:02]} hxg4 {[%clk 00:01:06]}
29. Rd3 {[%clk 00:00:31]} {[%emt 00:00:04]} Re2 {[%clk 00:01:05]} {[%emt
00:00:02]} 30. Rb1 {[%clk 00:00:29]} {[%emt 00:00:04]} g5 {[%clk 00:01:00]}
{[%emt 00:00:08]} 31. Bd6 {[%clk 00:00:23]} {[%emt 00:00:08]} Rd8 {[%clk
00:00:52]} {[%emt 00:00:09]} 32. Ba3 {[%clk 00:00:22]} {[%emt 00:00:03]} Kf7
{[%clk 00:00:45]} {[%emt 00:00:09]} 33. Rc1 {[%clk 00:00:22]} {[%emt 00:00:02]}
Rd7 {[%clk 00:00:46]} {[%emt 00:00:02]} 34. Kf1 {[%clk 00:00:23]} Re6 {[%clk
00:00:44]} {[%emt 00:00:03]} 35. b3 {[%clk 00:00:23]} {[%emt 00:00:02]} Kg6
{[%clk 00:00:44]} {[%emt 00:00:03]} 36. Bb2 {[%clk 00:00:24]} Red6 {[%clk
00:00:44]} {[%emt 00:00:02]} 37. Rcd1 {[%clk 00:00:25]} Kf5 {[%clk 00:00:45]}
{[%emt 00:00:02]} 38. Re1 {[%clk 00:00:25]} {[%emt 00:00:02]} Re6 {[%clk
00:00:45]} {[%emt 00:00:02]} 39. Red1 {[%clk 00:00:26]} Re4 {[%clk 00:00:42]}
{[%emt 00:00:06]} 40. Re1 {[%clk 00:00:25]} {[%emt 00:00:03]} Rxe1+ {[%clk
00:00:42]} {[%emt 00:00:03]} 41. Kxe1 Ke4 {[%emt 00:00:01]} 42. Ke2 {[%clk
00:00:26]} {[%emt 00:00:02]} Rc7 {[%clk 00:00:43]} {[%emt 00:00:02]} 43. Rd2
{[%clk 00:00:26]} {[%emt 00:00:02]} d3+ {[%clk 00:00:42]} {[%emt 00:00:03]} 44.
Kd1 {[%clk 00:00:20]} {[%emt 00:00:08]} Bxb2 {[%clk 00:00:36]} {[%emt
00:00:08]} 45. Rxb2 {[%clk 00:00:21]} Rc2 {[%clk 00:00:37]} {[%emt 00:00:02]}
46. Rxc2 {[%clk 00:00:09]} {[%emt 00:00:14]} dxc2+ {[%clk 00:00:37]} {[%emt
00:00:02]} 47. Kxc2 {[%clk 00:00:10]} Kf3 {[%clk 00:00:38]} 0-1

[Event "MČR v bleskovém šachu družstev 2019"]
[Site "Teplice, Czech Republic"]
[Date "2019.09.14"]
[Round "15.21"]
[White "Liska, Jiri"]
[Black "Skypala, Ondrej"]
[Result "1/2-1/2"]
[TimeControl "3 mim. + 2 s"]
[WhiteTitle "FM"]
[BlackFideId "366285"]
[WhiteElo "2241"]
[BlackElo "1976"]

1. e4 {[%clk 00:03:02]} {[%emt 00:00:02]} e6 {[%clk 00:03:03]} {[%emt
00:00:01]} 2. d4 {[%clk 00:03:02]} {[%emt 00:00:02]} d5 {[%clk 00:03:04]}
{[%emt 00:00:01]} 3. Nc3 {[%clk 00:03:03]} {[%emt 00:00:01]} Nf6 {[%clk
00:03:05]} {[%emt 00:00:01]} 4. e5 {[%clk 00:03:00]} {[%emt 00:00:05]} Nfd7
{[%clk 00:03:06]} 5. f4 {[%clk 00:02:56]} {[%emt 00:00:06]} c5 {[%clk
00:03:07]} {[%emt 00:00:02]} 6. Nf3 {[%clk 00:02:57]} {[%emt 00:00:01]} Nc6
{[%clk 00:03:08]} 7. Ne2 {[%clk 00:02:26]} {[%emt 00:00:33]} b5 {[%clk
00:03:06]} {[%emt 00:00:04]} 8. c3 {[%clk 00:02:26]} {[%emt 00:00:03]} a5
{[%clk 00:03:01]} {[%emt 00:00:07]} 9. dxc5 {[%clk 00:02:24]} {[%emt 00:00:04]}
Bxc5 {[%clk 00:03:00]} {[%emt 00:00:02]} 10. Ned4 {[%clk 00:02:24]} {[%emt
00:00:01]} Nxd4 {[%clk 00:03:00]} {[%emt 00:00:02]} 11. Nxd4 {[%clk 00:02:21]}
{[%emt 00:00:05]} b4 {[%clk 00:03:01]} {[%emt 00:00:01]} 12. Bb5 {[%clk
00:02:17]} {[%emt 00:00:06]} bxc3 {[%clk 00:02:54]} {[%emt 00:00:10]} 13. bxc3
{[%clk 00:02:17]} {[%emt 00:00:03]} O-O {[%clk 00:02:53]} {[%emt 00:00:02]} 14.
Be3 {[%clk 00:02:15]} {[%emt 00:00:03]} Qb6 {[%clk 00:02:54]} {[%emt 00:00:02]}
15. a4 {[%clk 00:02:15]} {[%emt 00:00:03]} f6 {[%clk 00:02:43]} {[%emt
00:00:12]} 16. exf6 {[%clk 00:02:15]} {[%emt 00:00:01]} Nxf6 {[%clk 00:02:44]}
{[%emt 00:00:02]} 17. O-O {[%clk 00:02:08]} {[%emt 00:00:10]} Ne4 {[%clk
00:02:44]} {[%emt 00:00:01]} 18. Qd3 {[%clk 00:02:02]} {[%emt 00:00:07]} Ba6
{[%clk 00:02:38]} {[%emt 00:00:08]} 19. Rab1 {[%clk 00:02:02]} {[%emt
00:00:03]} Bxb5 {[%clk 00:02:14]} {[%emt 00:00:26]} 20. Rxb5 {[%clk 00:02:02]}
{[%emt 00:00:03]} Qd6 {[%clk 00:02:14]} 21. Rb7 {[%clk 00:01:38]} {[%emt
00:00:27]} Rab8 {[%clk 00:02:06]} {[%emt 00:00:10]} 22. Rfb1 {[%clk 00:01:38]}
Rxb7 {[%clk 00:02:08]} {[%emt 00:00:01]} 23. Rxb7 {[%clk 00:01:39]} {[%emt
00:00:01]} Rb8 {[%clk 00:02:04]} {[%emt 00:00:06]} 24. Rxb8+ {[%clk 00:01:10]}
{[%emt 00:00:31]} Qxb8 {[%clk 00:02:05]} {[%emt 00:00:01]} 25. h3 {[%clk
00:01:10]} {[%emt 00:00:02]} Qb2 {[%clk 00:01:56]} {[%emt 00:00:10]} 26. Qa6
{[%clk 00:00:29]} {[%emt 00:00:44]} Bxd4 {[%clk 00:01:46]} {[%emt 00:00:12]} 27.
Qxe6+ {[%clk 00:00:29]} {[%emt 00:00:02]} Kf8 {[%clk 00:01:41]} {[%emt
00:00:06]} 28. Qc8+ {[%clk 00:00:21]} {[%emt 00:00:10]} Ke7 {[%clk 00:01:35]}
{[%emt 00:00:03]} 29. Qc7+ {[%clk 00:00:22]} {[%emt 00:00:07]} Ke6 {[%clk
00:01:27]} {[%emt 00:00:10]} 30. Bxd4 {[%clk 00:00:23]} {[%emt 00:00:01]} Qc1+
{[%clk 00:00:58]} {[%emt 00:00:30]} 31. Kh2 {[%clk 00:00:24]} Nd2 {[%clk
00:01:00]} {[%emt 00:00:02]} 32. Qe5+ {[%clk 00:00:17]} {[%emt 00:00:09]} Kd7
{[%clk 00:00:58]} {[%emt 00:00:04]} 33. Qxd5+ {[%clk 00:00:18]} {[%emt
00:00:01]} Kc8 {[%clk 00:00:57]} 34. Qc6+ {[%clk 00:00:19]} {[%emt 00:00:03]}
Kd8 {[%clk 00:00:57]} {[%emt 00:00:02]} 35. Bb6+ {[%clk 00:00:20]} {[%emt
00:00:01]} Ke7 {[%clk 00:00:58]} 36. Bc5+ {[%clk 00:00:21]} {[%emt 00:00:01]}
Kd8 {[%clk 00:00:55]} {[%emt 00:00:05]} 37. Qd6+ {[%clk 00:00:20]} {[%emt
00:00:03]} Kc8 {[%clk 00:00:57]} 38. Qf8+ {[%clk 00:00:20]} {[%emt 00:00:02]}
Kb7 {[%clk 00:00:55]} {[%emt 00:00:02]} 39. Qe7+ {[%clk 00:00:15]} {[%emt
00:00:08]} Kc8 {[%clk 00:00:54]} {[%emt 00:00:03]} 40. Qe6+ {[%clk 00:00:16]}
{[%emt 00:00:02]} Kc7 {[%clk 00:00:54]} {[%emt 00:00:02]} 41. Qe5+ {[%clk
00:00:13]} {[%emt 00:00:04]} Kc8 {[%clk 00:00:51]} {[%emt 00:00:05]} 42. Kg3
{[%clk 00:00:12]} {[%emt 00:00:04]} Qxc3+ {[%clk 00:00:47]} {[%emt 00:00:06]}
43. Kg4 {[%clk 00:00:09]} {[%emt 00:00:04]} Qxe5 44. fxe5 {[%clk 00:00:11]} Kd7
{[%clk 00:00:40]} {[%emt 00:00:01]} 45. Kf5 {[%clk 00:00:11]} {[%emt 00:00:01]}
g6+ {[%clk 00:00:40]} {[%emt 00:00:03]} 46. Kf6 {[%clk 00:00:12]} Ne4+ {[%clk
00:00:41]} 47. Kg7 {[%clk 00:00:13]} {[%emt 00:00:02]} Nxc5 {[%clk 00:00:42]}
{[%emt 00:00:01]} 48. Kxh7 {[%clk 00:00:13]} {[%emt 00:00:02]} g5 {[%clk
00:00:43]} 49. Kg6 {[%clk 00:00:11]} {[%emt 00:00:05]} Nxa4 {[%clk 00:00:37]}
{[%emt 00:00:08]} 50. Kxg5 {[%clk 00:00:12]} Nc5 {[%clk 00:00:38]} {[%emt
00:00:02]} 51. h4 {[%clk 00:00:13]} a4 {[%clk 00:00:40]} 52. h5 {[%clk
00:00:14]} {[%emt 00:00:01]} Ne6+ {[%clk 00:00:41]} {[%emt 00:00:01]} 53. Kf6
{[%clk 00:00:15]} {[%emt 00:00:01]} a3 {[%clk 00:00:36]} {[%emt 00:00:06]} 54.
h6 {[%clk 00:00:16]} Nf8 {[%clk 00:00:30]} {[%emt 00:00:08]} 55. Kf7 {[%clk
00:00:11]} {[%emt 00:00:08]} a2 {[%clk 00:00:31]} 56. h7 {[%clk 00:00:05]}
{[%emt 00:00:07]} Nxh7 {[%clk 00:00:32]} {[%emt 00:00:02]} 57. e6+ {[%clk
00:00:07]} Kd6 {[%clk 00:00:33]} {[%emt 00:00:01]} 58. e7 {[%clk 00:00:08]}
a1=Q {[%clk 00:00:33]} {[%emt 00:00:03]} 59. e8=Q {[%clk 00:00:09]} {[%emt
00:00:01]} Qf6+ {[%clk 00:00:33]} {[%emt 00:00:01]} 60. Kg8 {[%clk 00:00:10]}
{[%emt 00:00:01]} Ng5 {[%clk 00:00:18]} {[%emt 00:00:18]} 61. Qf8+ {[%clk
00:00:09]} {[%emt 00:00:03]} 1/2-1/2

[Event "MČR v bleskovém šachu družstev 2019"]
[Site "Teplice, Czech Republic"]
[Date "2019.09.14"]
[Round "15.22"]
[White "Kucera, Tomas"]
[Black "Vltavsky, Vladimir"]
[Result "1/2-1/2"]
[TimeControl "3 mim. + 2 s"]
[WhiteFideId "311065"]
[WhiteElo "2014"]
[BlackElo "2252"]

1. e4 {[%emt 00:00:20]} c5 {[%emt 00:00:01]} 2. Nf3 {[%clk 00:03:04]} {[%emt
00:00:01]} e6 {[%clk 00:03:03]} {[%emt 00:00:01]} 3. Nc3 {[%clk 00:03:03]}
{[%emt 00:00:04]} Nc6 {[%clk 00:03:04]} 4. g3 {[%clk 00:03:02]} {[%emt
00:00:03]} Nf6 {[%clk 00:02:51]} {[%emt 00:00:15]} 5. Bg2 {[%clk 00:03:01]}
{[%emt 00:00:04]} d6 {[%clk 00:02:50]} {[%emt 00:00:02]} 6. O-O {[%emt
00:00:02]} Be7 7. d4 {[%emt 00:00:04]} cxd4 {[%emt 00:00:02]} 8. Nxd4 {[%clk
00:02:59]} Bd7 {[%clk 00:02:45]} {[%emt 00:00:09]} 9. Ndb5 {[%clk 00:02:41]}
{[%emt 00:00:20]} Qb8 {[%clk 00:02:45]} {[%emt 00:00:01]} 10. Bf4 {[%emt
00:00:11]} e5 {[%emt 00:00:01]} 11. Bg5 {[%clk 00:02:28]} {[%emt 00:00:07]} a6
{[%clk 00:02:45]} {[%emt 00:00:03]} 12. Na3 {[%clk 00:02:26]} {[%emt 00:00:04]}
b5 {[%clk 00:02:40]} {[%emt 00:00:06]} 13. Bxf6 {[%clk 00:02:22]} {[%emt
00:00:06]} Bxf6 {[%emt 00:00:09]} 14. Nd5 {[%emt 00:00:02]} Bd8 {[%clk
00:02:30]} {[%emt 00:00:05]} 15. c3 {[%emt 00:00:09]} O-O {[%emt 00:00:02]} 16.
Nc2 {[%clk 00:02:16]} {[%emt 00:00:01]} Ra7 {[%emt 00:00:13]} 17. Nce3 {[%emt
00:00:01]} Ne7 {[%clk 00:02:14]} {[%emt 00:00:08]} 18. Nxe7+ Bxe7 {[%clk
00:02:15]} 19. Nd5 {[%clk 00:02:13]} Bg5 {[%clk 00:02:11]} {[%emt 00:00:06]} 20.
Qd3 {[%clk 00:01:58]} {[%emt 00:00:17]} f5 {[%clk 00:02:03]} {[%emt 00:00:11]}
21. h4 {[%clk 00:01:24]} {[%emt 00:00:37]} Bd8 {[%clk 00:01:56]} {[%emt
00:00:08]} 22. exf5 {[%clk 00:01:13]} {[%emt 00:00:12]} Bxf5 {[%clk 00:01:56]}
{[%emt 00:00:02]} 23. Qe3 {[%clk 00:01:05]} {[%emt 00:00:09]} Raf7 {[%clk
00:01:54]} {[%emt 00:00:06]} 24. Nb4 {[%clk 00:00:57]} {[%emt 00:00:10]} Bb6
{[%clk 00:01:44]} {[%emt 00:00:11]} 25. Qd2 {[%clk 00:00:45]} {[%emt 00:00:15]}
Be6 {[%clk 00:01:31]} {[%emt 00:00:14]} 26. Nd5 {[%clk 00:00:26]} {[%emt
00:00:21]} Qa7 {[%clk 00:01:03]} {[%emt 00:00:31]} 27. Nxb6 {[%clk 00:00:23]}
{[%emt 00:00:05]} Qxb6 {[%clk 00:01:04]} 28. Qe3 {[%clk 00:00:11]} {[%emt
00:00:16]} Qxe3 {[%emt 00:00:14]} 29. fxe3 Rxf1+ {[%clk 00:00:48]} {[%emt
00:00:05]} 30. Rxf1 {[%emt 00:00:01]} Rxf1+ {[%emt 00:00:01]} 31. Kxf1 {[%clk
00:00:10]} {[%emt 00:00:04]} d5 32. a3 {[%emt 00:00:05]} Kf7 {[%emt 00:00:01]}
33. Ke2 Ke7 {[%emt 00:00:02]} 34. e4 {[%emt 00:00:03]} Kd6 {[%emt 00:00:10]} 35.
exd5 {[%emt 00:00:03]} Bxd5 {[%clk 00:00:45]} 36. Bxd5 Kxd5 37. Kd3 {[%emt
00:00:01]} h5 {[%clk 00:00:43]} {[%emt 00:00:04]} 38. b3 {[%clk 00:00:04]}
{[%emt 00:00:03]} a5 {[%clk 00:00:38]} {[%emt 00:00:07]} 39. Ke3 {[%clk
00:00:06]} a4 {[%clk 00:00:30]} {[%emt 00:00:10]} 40. bxa4 {[%clk 00:00:05]}
{[%emt 00:00:03]} bxa4 {[%clk 00:00:31]} {[%emt 00:00:01]} 41. Kd3 {[%clk
00:00:06]} g6 {[%emt 00:00:04]} 42. Ke3 {[%emt 00:00:01]} Kc4 {[%clk 00:00:30]}
{[%emt 00:00:01]} 43. Ke4 {[%clk 00:00:07]} {[%emt 00:00:02]} Kxc3 44. Kxe5 Kb3
{[%clk 00:00:32]} 45. Kf6 {[%clk 00:00:10]} Kxa3 {[%emt 00:00:02]} 46. Kxg6 Kb4
{[%clk 00:00:30]} {[%emt 00:00:04]} 47. Kxh5 {[%emt 00:00:06]} a3 48. g4 {[%emt
00:00:01]} a2 49. g5 {[%clk 00:00:11]} a1=Q {[%clk 00:00:33]} 50. g6 {[%clk
00:00:12]} {[%emt 00:00:01]} Qf6 {[%clk 00:00:28]} {[%emt 00:00:07]} 51. Kh6
{[%clk 00:00:11]} {[%emt 00:00:04]} Qxh4+ {[%clk 00:00:28]} {[%emt 00:00:02]}
52. Kg7 {[%clk 00:00:13]} Qe7+ {[%clk 00:00:24]} {[%emt 00:00:06]} 53. Kg8
{[%clk 00:00:12]} {[%emt 00:00:03]} Qe8+ {[%emt 00:00:04]} 54. Kh7 {[%emt
00:00:02]} Qe7+ {[%emt 00:00:17]} 55. g7 Qxg7+ {[%emt 00:00:01]} 56. Kxg7
{[%emt 00:00:01]} 1/2-1/2

[Event "MČR v bleskovém šachu družstev 2019"]
[Site "Teplice, Czech Republic"]
[Date "2019.09.14"]
[Round "15.23"]
[White "Marsalek, Zdenek"]
[Black "Plasil, Petr"]
[Result "1-0"]
[TimeControl "3 mim. + 2 s"]
[BlackFideId "359360"]
[WhiteElo "2272"]
[BlackElo "1950"]

1. d4 {[%clk 00:03:03]} {[%emt 00:24:05]} Nf6 {[%clk 00:03:03]} {[%emt
00:00:02]} 2. Nf3 {[%clk 00:03:05]} g6 {[%clk 00:03:04]} {[%emt 00:00:02]} 3.
g3 {[%clk 00:03:06]} Bg7 {[%clk 00:03:05]} 4. Bg2 {[%clk 00:03:07]} O-O {[%clk
00:03:05]} {[%emt 00:00:03]} 5. O-O {[%clk 00:03:08]} d5 {[%clk 00:03:06]}
{[%emt 00:00:03]} 6. c4 {[%clk 00:03:10]} c5 {[%clk 00:02:54]} {[%emt
00:00:15]} 7. cxd5 {[%clk 00:03:03]} {[%emt 00:00:08]} cxd4 {[%clk 00:02:50]}
{[%emt 00:00:05]} 8. Nxd4 {[%clk 00:03:01]} {[%emt 00:00:05]} Nxd5 {[%clk
00:02:36]} {[%emt 00:00:17]} 9. Nc3 {[%clk 00:03:00]} {[%emt 00:00:02]} Nb6
{[%clk 00:02:17]} {[%emt 00:00:21]} 10. Ndb5 {[%clk 00:02:59]} {[%emt
00:00:04]} Na6 {[%clk 00:01:49]} {[%emt 00:00:29]} 11. Bf4 {[%clk 00:02:37]}
{[%emt 00:00:24]} e5 {[%clk 00:01:40]} {[%emt 00:00:11]} 12. Be3 {[%clk
00:02:35]} {[%emt 00:00:03]} Nc4 {[%clk 00:01:32]} {[%emt 00:00:11]} 13. Bxa7
{[%clk 00:02:32]} {[%emt 00:00:05]} Qxd1 {[%clk 00:01:11]} {[%emt 00:00:23]} 14.
Raxd1 {[%clk 00:02:30]} {[%emt 00:00:05]} Nxb2 {[%clk 00:01:09]} {[%emt
00:00:04]} 15. Rb1 {[%clk 00:02:18]} {[%emt 00:00:13]} Nc4 {[%clk 00:01:08]}
{[%emt 00:00:03]} 16. Rfd1 {[%clk 00:02:14]} {[%emt 00:00:06]} Na3 {[%clk
00:00:45]} {[%emt 00:00:25]} 17. Rb3 {[%clk 00:01:47]} {[%emt 00:00:29]} Nxb5
{[%clk 00:00:43]} {[%emt 00:00:05]} 18. Nxb5 {[%clk 00:01:46]} {[%emt
00:00:02]} Be6 {[%clk 00:00:34]} {[%emt 00:00:11]} 19. Rb2 {[%clk 00:01:25]}
{[%emt 00:00:23]} e4 {[%clk 00:00:24]} {[%emt 00:00:12]} 20. Rc2 {[%clk
00:01:09]} {[%emt 00:00:19]} f5 {[%clk 00:00:23]} {[%emt 00:00:02]} 21. f3
{[%clk 00:00:52]} {[%emt 00:00:19]} Nb4 {[%clk 00:00:18]} {[%emt 00:00:07]} 22.
Rc7 {[%clk 00:00:48]} {[%emt 00:00:06]} Nxa2 {[%clk 00:00:09]} {[%emt
00:00:11]} 23. fxe4 {[%clk 00:00:44]} {[%emt 00:00:07]} Nc3 {[%clk 00:00:08]}
{[%emt 00:00:02]} 24. Rxg7+ {[%clk 00:00:38]} {[%emt 00:00:08]} Kxg7 {[%clk
00:00:09]} {[%emt 00:00:02]} 25. Bd4+ {[%clk 00:00:39]} Kg8 {[%clk 00:00:08]}
{[%emt 00:00:04]} 26. Bxc3 {[%clk 00:00:37]} {[%emt 00:00:04]} Ra2 {[%clk
00:00:08]} {[%emt 00:00:01]} 27. exf5 {[%clk 00:00:33]} {[%emt 00:00:06]} Rxf5
{[%clk 00:00:08]} {[%emt 00:00:02]} 28. Nd4 {[%clk 00:00:32]} {[%emt 00:00:03]}
Re5 {[%clk 00:00:08]} {[%emt 00:00:03]} 29. Nxe6 {[%clk 00:00:29]} {[%emt
00:00:05]} 1-0